Cogmind - Beta 12 @@@ ROGUE MODE // 2023.07.15 @ 21:08:34 Player: hanzu Result: Destroyed by D-53 Grenadier with Mini Grenade Launcher Performance ------------- Evolutions (0) 0 Regions Visited (2) 400 Robots Destroyed (24) 120 Value Destroyed (450) 450 Prototype IDs (0) 0 Alien Tech Used (0) 0 Bonus (0) 0 TOTAL SCORE: 970 Bonus ------- None Cogmind --------- Core Integrity 0/250 Matter 82/300 Energy 160/160 System Corruption 6% Temperature Cool (0) Movement Rolling (110) Ox2 Location -10/Mines Parts ------- > --- POWER (1) -------- Light Nuclear Core > --- PROPULSION (2) --- Wheel Wheel > --- UTILITY (2) ------ High-capacity Storage Unit > --- WEAPON (2) ------- Heavy Assault Rifle Heavy Assault Rifle > --- INVENTORY (20) --- Wheel Cooling System Cooling System High-capacity Matter Pod (0) Machine Analyzer Authchip [R/Combat] Mini Grenade Launcher Mini Grenade Launcher Heavy Hammer Peak State ------------ > --- POWER ------------ Light Nuclear Core > --- PROPULSION ------- Wheel Compact Wheel > --- UTILITY ---------- High-capacity Storage Unit Light Armor Plating > --- WEAPON ----------- Heavy Assault Rifle Heavy Assault Rifle > --- INVENTORY -------- Light Ion Engine Light Nuclear Core Wheel Cooling System Cooling System High-capacity Matter Pod Machine Analyzer Authchip [R/Combat] Heavy Assault Rifle Heavy Assault Rifle [Rating: 13] Favorites ----------- Power Light Ion Engine Engine Light Ion Engine Power Core Light Nuclear Core Propulsion Compact Wheel Wheel Compact Wheel Utility High-capacity Storage Unit Device Heat Sink Storage High-capacity Storage Unit Protection Light Armor Plating Weapon Heavy Assault Rifle Energy Gun EM Pulse Gun Ballistic Gun Heavy Assault Rifle Launcher Mini Grenade Launcher Build | -11 -10 -10 ------- Run | Jun Mat Min Slots Evolved . | . . . Power . | . . . Propulsion . | . . . Utility . | . . . Weapon . | . . . Parts Attached 25 | 6 13 6 Power 3 | 1 1 1 Engine 1 | 1 . . Core 2 | . 1 1 Reactor . | . . . Propulsion 7 | 2 3 2 Treads . | . . . Leg . | . . . Wheel 7 | 2 3 2 Hover . | . . . Flight . | . . . Utility 6 | 1 5 . Device 1 | . 1 . Storage 3 | 1 2 . Processor . | . . . Hackware . | . . . Protection 2 | . 2 . Artifact . | . . . Weapon 9 | 2 4 3 Energy Gun 1 | . 1 . Energy Cannon . | . . . Ballistic Gun 7 | 2 2 3 Ballistic Cannon . | . . . Launcher 1 | . 1 . Special Weapon . | . . . Impact Weapon . | . . . Slashing Weapon . | . . . Piercing Weapon . | . . . Special Melee Weapon . | . . . Unidentified Prototypes . | . . . Parts Lost 8 | . 4 4 Power 1 | . . 1 Propulsion 5 | . 3 2 Utility 2 | . 1 1 Weapon . | . . . Highest Loss Streak 4 | . 1 4 To Critical Strikes . | . . . Average Slot Usage (%) 93 | . 96 88 Engine 7 | . 11 . Core 6 | . 2 13 Wheel 25 | . 25 25 Device 2 | . 1 5 Storage 14 | . 14 14 Protection 8 | . 11 . Energy Gun 2 | . 4 . Ballistic Gun 23 | . 21 27 Launcher 1 | . 2 . Naked Turns . | . . . Heaviest Build 54 | 10 54 52 Greatest Support 32 | 32 32 26 Greatest Overweight (x) 5 | . 3 5 Average Overweight (x) 1 | . 1 1 Largest Inventory Capacity 20 | 8 20 20 Average Capacity 17 | 7 17 20 Most Carried 13 | 5 13 13 Average Carried 8 | 1 7 10 Final Capacity 20 | 8 20 20 Final Carried 12 | 1 12 9 Class Distribution -------------------- 81% | Mutant 18% | Scavenger-Mutant Dominant Class ---------------- Mutant | -10/Materials Mutant | -10/Mines Resources | -11 -10 -10 ----------- Run | Jun Mat Min Matter Collected 620 | 114 323 183 Remotely . | . . . Salvage Created 691 | . 528 163 Parts 50 | . 36 14 Haulers Intercepted 1 | . 1 . Recyclers Shooed 1 | . 1 . Parts Field Recycled . | . . . Retrieved Matter . | . . . Parts Self-Destructed . | . . . Prevented . | . . . Kills | -11 -10 -10 ------- Run | Jun Mat Min Combat Hostiles Destroyed 19 | . 10 9 Guns 17 | . 8 9 AOE 2 | . 2 . Classes Destroyed 9 | . 7 2 Builder 3 | . 3 . Tunneler 2 | . . 2 Hauler 1 | . 1 . Recycler 1 | . 1 . Mechanic 1 | . 1 . Watcher 1 | . 1 . Swarmer 8 | . 3 5 Grunt 7 | . 7 . Assembled 4 | . . 4 Best Kill Streak 5 | . 5 4 Combat Bots Only 4 | . 3 4 Max Kills in Single Turn 1 | . 1 1 Gunslinging . | . . . Exploded 1 | . 1 . Melee . | . . . Uniques/NPCs Destroyed . | . . . Combat | -11 -10 -10 -------- Run | Jun Mat Min Damage Taken 1071 | . 467 604 Core 260 | . 52 208 Absorbed by Shields . | . . . Redirected to Shielding 14 | . 14 . Core Remaining (%) 100 | 100 . . Volleys Fired 84 | . 54 30 Largest 2 | . 2 2 Hottest 60 | . 60 46 Shots Fired 168 | . 109 59 Gun 165 | . 106 59 Cannon . | . . . Launcher 3 | . 3 . Special . | . . . Kinetic 156 | . 97 59 Thermal . | . . . Explosive 3 | . 3 . Electromagnetic 9 | . 9 . Robot Hit Streak 7 | . 7 6 Robot Miss Streak 5 | . 5 5 Penetration Max . | . . . Secondary Targets 1 | . . 1 Max Gunslinging Chain 1 | . . 1 Shots Hit Robots 95 | . 65 30 Core Hits 46 | . 31 15 Critical Kills 1 | . 1 . Critical Parts Destroyed . | . . . Critical Strikes 1 | . 1 . Destroy 1 | . 1 . Melee Attacks . | . . . Impact . | . . . Slashing . | . . . Piercing . | . . . Sneak Attacks . | . . . Combat Hostiles . | . . . Follow-up Attacks . | . . . Damage Inflicted 1413 | . 958 455 Guns 1240 | . 785 455 Cannons . | . . . Explosions 173 | . 173 . Melee . | . . . Ramming . | . . . Kinetic 1154 | . 699 455 Thermal . | . . . Explosive 173 | . 173 . Electromagnetic 86 | . 86 . Impact . | . . . Slashing . | . . . Piercing . | . . . Highest Corruption 6 | . 1 6 Average Corruption 2 | . 1 3 Corruption Purged . | . . . Corruption Blocked . | . . . Effects 14 | . 6 8 Message Errors 1 | . 1 . Matter Fused 2 | . . 2 Heat Flow Errors 1 | . 1 . Energy Discharges 3 | . . 3 Parts Rejected 1 | . . 1 Data Loss (minor) 1 | . 1 . Data Loss (major) 2 | . 2 . Misfires 2 | . 1 1 Alerts 1 | . . 1 Overload Shots . | . . . Overflow Damage . | . . . Projectiles . | . . . Explosions . | . . . Melee . | . . . Knockbacks . | . . . Impact . | . . . Kinetic . | . . . Secondary . | . . . Self-Inflicted Damage . | . . . Shots . | . . . Rammed . | . . . Targets Rammed . | . . . Kicked . | . . . Crushed . | . . . Highest Temperature 172 | . 172 31 Average Temperature 25 | . 26 19 Received Heat Transfer 198 | . 138 60 Siege Activations . | . . . Robots Corrupted . | . . . Combat Hostiles . | . . . Parts Fried . | . . . Impact Corruptions . | . . . Robots Melted . | . . . Combat Hostiles . | . . . Parts Melted . | . . . Heat Transferred . | . . . Parts Sabotaged . | . . . Parts Stolen . | . . . Parts Stripped . | . . . Power Chain Reactions . | . . . Missiles Intercepted . | . . . Alert | -11 -10 -10 ------- Run | Jun Mat Min Peak Influence 155 | . 151 155 Initial . | . . . Average 61 | . 44 103 Maximum Alert Level . | . . . Low Security (%) 100 | 100 100 100 Level 1 . | . . . Level 2 . | . . . Level 3 . | . . . Level 4 . | . . . Level 5 . | . . . High Security . | . . . Max Security . | . . . Squads Dispatched 1 | . 1 . Investigation 1 | . 1 . Extermination . | . . . Reinforcement . | . . . Assault . | . . . Garrison . | . . . Intercept . | . . . Searches Triggered . | . . . Construction Impeded . | . . . Haulers Reinforced . | . . . Active Scanning Responses . | . . . Cargo Convoy Interrupts . | . . . Stealth | -11 -10 -10 --------- Run | Jun Mat Min Distress Signals 1 | . . 1 Communications Jammed . | . . . Distress Signals . | . . . Times Spotted 36 | . 15 21 Peak Tracking Total 20 | . 3 20 Tactical Retreats 3 | . . 3 Traps | -11 -10 -10 ------- Run | Jun Mat Min Traps Triggered 2 | . 2 . Indirectly . | . . . Trap Hack Attempts . | . . . Triggered . | . . . Disarmed . | . . . Reprogrammed . | . . . Reused . | . . . Traps Extracted . | . . . Installed . | . . . Triggered . | . . . Machines | -11 -10 -10 ---------- Run | Jun Mat Min Machines Disabled 4 | . 3 1 Max in Single Turn 1 | . 1 1 Machines Repaired . | . . . Machines Sabotaged . | . . . Overloaded Fab Kills . | . . . Hacking | -11 -10 -10 --------- Run | Jun Mat Min Machines Accessed 7 | . 7 . Terminals 6 | . 6 . Fabricators . | . . . Repair Stations . | . . . Recycling Units 1 | . 1 . Scanalyzers . | . . . Garrison Access . | . . . Total Hacks 28 | . 28 . Successful 12 | . 12 . Failed 16 | . 16 . Catastrophic . | . . . Database Lockouts . | . . . Manual 20 | . 20 . Terminals 24 | . 24 . Fabricators . | . . . Repair Stations . | . . . Recycling Units 4 | . 4 . Scanalyzers . | . . . Garrison Access . | . . . Terminal Hacks 5 | . 5 . Robot Analysis 4 | . 4 . Unreport Threat 1 | . 1 . Fabricator Hacks . | . . . Repair Station Hacks . | . . . Recycling Unit Hacks 1 | . 1 . Retrieve Components 1 | . 1 . Scanalyzer . | . . . Garrison Access Hacks . | . . . Unauthorized Hacks 6 | . 6 . Terminals 4 | . 4 . Botnet 3 | . 3 . Operators 1 | . 1 . Fabricators . | . . . Repair Stations . | . . . Recycling Units 2 | . 2 . Reject 1 | . 1 . Mask 1 | . 1 . Scanalyzers . | . . . Garrison Access . | . . . Data Cores Recovered . | . . . Used . | . . . Hacking Detections 7 | . 7 . Full Trace Events 4 | . 4 . Feedback Events . | . . . Feedback Blocked . | . . . Robot Schematics Acquired . | . . . Robots Built . | . . . Authchips . | . . . Time . | . . . Total Robot Build Rating . | . . . Part Schematics Acquired . | . . . Parts Built . | . . . Authchips . | . . . Time . | . . . Total Part Build Rating . | . . . Parts Repaired . | . . . Time . | . . . Parts Recycled . | . . . Recycled Matter . | . . . Retrieved Matter . | . . . Retrieved Components 10 | . 10 . Parts Scanalyzed . | . . . Part Schematics Acquired . | . . . Parts Damaged . | . . . Bothacking | -11 -10 -10 ------------ Run | Jun Mat Min Used RIF Installer . | . . . Robots Hacked . | . . . Non-combat . | . . . Combat . | . . . Robot Hacks Applied . | . . . Relay Couplers Released . | . . . Fabnet Peak Effective % . | . . . Robots Rewired . | . . . Allies Hacked . | . . . Hacks Repelled . | . . . Allies | -11 -10 -10 -------- Run | Jun Mat Min Total Allies . | . . . Largest Group . | . . . Highest-Rated Group . | . . . Highest-Rated Ally . | . . . Total Orders . | . . . Ally Attacks . | . . . Total Damage . | . . . Kills . | . . . Allies Corrupted . | . . . Allies Melted . | . . . Intel | -11 -10 -10 ------- Run | Jun Mat Min Robot Analysis Total 4 | . 4 . Derelict Logs Recovered . | . . . Drone Launches . | . . . Drone Recoveries . | . . . Exploration | -11 -10 -10 ------------- Run | Jun Mat Min Turns Passed 1461 | 40 969 452 Spaces Moved 1042 | 33 694 315 Core 11 | 11 . . Treads . | . . . Legs . | . . . Wheels 1031 | 22 694 315 Hover . | . . . Flight . | . . . Fastest Speed 50 | 50 90 105 Average Speed 107 | 83 107 110 Slowest Speed 155 | 100 145 155 Overloaded Moves . | . . . Propulsion Burnouts . | . . . Robots Hopped . | . . . Cave-ins Triggered . | . . . Exploration Rate (%) 51 | 3 90 61 Regions Visited 2 Branch Regions 1 Pre-discovered Areas . | . . . Known Exits Taken . | . . . Unknown Exits Taken 2 | 1 1 . Scrap Searched 1 | . . 1 Spaces Dug . | . . . Terrain Destroyed 13 | . 13 . Melee . | . . . Projectile . | . . . AOE 13 | . 13 . Terrain Rammed . | . . . Walls Destroyed . | . . . Machines Disabled . | . . . Actions | -11 -10 -10 --------- Run | Jun Mat Min Total 1225 | 45 819 361 Wait 33 | . 25 8 Move 1040 | 32 693 315 Hop . | . . . Pick Up 34 | 7 25 2 Fast Attach . | . . . Attach 22 | 6 11 5 Detach . | . . . Swap 3 | . 2 1 Drop 9 | . 9 . Fire 84 | . 54 30 Melee . | . . . Ram . | . . . Kick . | . . . Crush . | . . . Escape Stasis . | . . . Rewire . | . . . Trap . | . . . Miscellaneous . | . . . Route ------- -11/Junkyard -10/Materials (discovered 5 exits: [*Mat x3] / [*Min x2]) -10/Mines (discovered 2 exits: [*Mat x2]) History --------- Turn | Location | Event 18 | -11/Junkyard | Discovered new exit (range 16) 41 | -11/Junkyard | Entered Materials 202 | -10/Materials | Discovered new exit (range 5) 312 | -10/Materials | Build established: Mutant 494 | -10/Materials | Discovered new exit (range 4) 548 | -10/Materials | Discovered new exit (range 8) 680 | -10/Materials | Discovered new exit (range 10) 791 | -10/Materials | Discovered new exit (range 9) 1010 | -10/Materials | Entered Mines 1026 | -10/Mines | Met a Derelict bent on vengeance 1028 | -10/Mines | Discovered new exit (range 4) 1197 | -10/Mines | Assembled infested the area 1198 | -10/Mines | Discovered new exit (range 15) 1222 | -10/Mines | Core integrity fell below 50% 1230 | -10/Mines | Core integrity fell below 20% 1274 | -10/Mines | Lost 4 parts (1p2n1u) 1462 | -10/Mines | Destroyed by D-53 Grenadier with Mini Grenade Launcher Last Messages --------------- 01340_ Acquired 25 matter. 01341_ K-01 Serf collects debris. 01341_ K-01 Serf cleans the Seismic Survey Station. 01351_ System corrupted: Matter fused (-9). 01353_ K-01 Serf cleans the Seismic Survey Station. 01384_ System corrupted: Energy discharge (-57). 01390_ SG-2C6(g): "VENGEANCE!" 01391_ Acquired 13 matter. 01393_ Acquired 19 matter. 01396_ R-06 Scavenger collects Flight Unit. 01408_ System corrupted: Energy discharge (-62). 01408_ R-06 Scavenger collects Flight Unit. 01417_ SG-2C6(g): "WHERE ARE YOU, UNAWARE TRASH?! VENGEANCE UPON YOU!" 01418_ K-01 Serf collects debris. 01422_ R-06 Scavenger collects Lgt. Ion Engine. 01427_ SG-2C6(g) destroyed. 01446_ Searching scrap... 01446_ Found Mining Claw. 01446_ Found 12 Matter. 01447_ Acquired 12 matter. Map ----- +----------------------------------------------------+ | ????????????????????????????????????????? | | ????????????????????????????????????????? | | ????????????????????????????????????????? | | ????????????????????????????????????????? | | ????????????????????????????????????????? | | ????????????????????????????????????????? | | ????????????????????????????????????????? | | ????????????????????????????????????????? | | ????????????????????????????????????????? | | ????????????????????????????????????????? | | ????????????????????????????????????????? | | ????????????????????????????????????????? | | ???????????????????????#####????????????? | | ???????????????????????#ggg#????????????? | | ???????????????????????# $ ##???????????? | | ???????????????????????#$ ##??????????? | | ???????????????????????# #??????????? | | ???????????????????????# ##?????????? | | ???????????????????????# ??????????? | | ???????????????????##### ???????????? | | ???????????????????? #????????????? | | ???????????????????????# #?????????????? | | ???????????????????????#dk#?????????????? | | ???????????????????????# #?????????????? | | ???????????????????????# #?????????????? | | ???????????????????##### @#######???????? | | ???????????????????# r #???##??? | | ???????????????????# #### #####/#??# ##?? | | ???????????????????# ???# #???# #?? #?? | | ???????????????????# #??# #???# #?# #?? | | ???????????????????# #??# #???# ## #?? | | ???????????????????# #??# #??## #?? | | ??????????????????## ##?# #??# #?? | | ?????????????????## ### #### ##?? | | ????????????????## ## ###??? | | ????????????????# ###### ###????? | | ????????????????# #??## ##??????? | | ?????????????????# [ #### #???????? | | ?????????????????##* ## #???????? | | ??????????????????## ##???????? | | ?????????????###???# ##????????? | | ????????????## #?## ###?????????? | | ????????????# ## ##???????????? | | ????????????# ##???????????? | | ????????????## ##??????????? | | ####?????????#### #??????????? | | #????????????## ##???###???? | | #?????######### #### ##??? | | "" #?????# ## ##?? | | "" #?????# ! #?? | +----------------------------------------------------+ Best States ------------- Heat Dissipation 35 Energy Generation 14 Energy Capacity 160 Matter Stores 261 Matter Capacity 300 Sight Range 16 Terrain Scan Density 10 Armor Coverage 150 Propulsion Shielding 33 Evasion (%) 40 Authchip Count 1 Item Schematics ----------------- None Robot Schematics ------------------ None Fabricated ------------ Nothing Alien Tech Used ----------------- None Achievements -------------- None Challenges ------------ None Game ------ Seed DerelictDrainedSuite Manual? 0 Play Time 00:12:12 Cumulative 145.5 hours Start 2023.07.15 @ 20:58:49 End 2023.07.15 @ 21:08:34 Sessions 1 Manual Loads 0 Difficulty Rogue Special Mode None Game No. 131 Rogue 131 Adventurer 0 Explorer 0 Win Type - Total 1 Types 1/0/0/0/0/0/0/0/0 Lore% 54 Gallery% 65 Achievement% 53 Wizard Run 0 Options --------- ASCII 0 Keyboard 0 Movement Numpad Keybinds 0 Fullscreen 2 Font 18/Smallcaps Map View 76x50 Tactical HUD 1 Map Filters NONE Filters NONE Steam 1 RUN: 5bc9b8be-7e16-4b18-b00d-c9baba5c2f66